bitfinex/quotes_SOLUSD_20241103
["timestamp","ask_amount","ask_price","bid_price","bid_amount"]
[1730640409236,0.09996066,163.16,163.1,0.12549]
[1730640409829,0.09996066,163.16,163.12,0.12549]
[1730640411036,0.09996066,163.19,163.14,0.12549]
[1730640411218,0.09996066,163.2,163.14,0.37647]
[1730640411531,0.09996066,163.21,163.14,0.37647]
[1730640411732,86.4775296,163.22,163.16,20.37647]
[1730640411733,0.39979026,163.22,163.16,20.37647]
[1730640411925,0.2998296,163.22,163.16,20.37647]
[1730640412122,0.39979026,163.22,163.16,20.37647]
[1730640412435,0.2998296,163.22,163.16,20.37647]
[1730640412616,0.39979026,163.22,163.18,0.12549]
[1730640412816,0.09996066,163.21,163.18,0.12549]
[1730640413243,0.39979026,163.22,163.18,0.12549]
[1730640413537,0.2998296,163.22,163.18,0.37647]
[1730640414114,0.2998296,163.22,163.2,0.37647]
[1730640414325,0.2998296,163.22,163.2,20.37647]
[1730640414940,0.2998296,163.22,163.21,26.50347]
[1730640415439,0.2998296,163.22,163.21,50.280354]
[1730640416014,0.2998296,163.22,163.21,26.50347]
[1730640418630,0.2998296,163.22,163.21,27.59813967]
[1730640419130,0.2998296,163.22,163.21,50.280354]
[1730640421022,0.2998296,163.22,163.21,26.25249]
[1730640421218,0.2998296,163.22,163.21,6.25249]
[1730640422119,0.2998296,163.22,163.21,30.280354]
[1730640422737,0.2998296,163.22,163.21,50.280354]
[1730640425939,0.2998296,163.22,163.21,51.31151434]
[1730640426746,0.2998296,163.22,163.21,27.53463034]
[1730640426914,0.2998296,163.22,163.21,26.127]
[1730640427321,0.2998296,163.22,163.21,26.25249]
[1730640428825,0.2998296,163.22,163.21,26.50347]
[1730640431558,0.2998296,163.22,163.21,6.127]
[1730640432724,0.39979026,163.22,163.21,6.127]
[1730640433548,0.39979026,163.22,163.17,30.6428]
[1730640434131,0.09996066,163.21,163.18,0.12549]
[1730640434944,0.09996066,163.21,163.19,21.4473]
[1730640435648,0.09996066,163.2,163.19,21.4473]
[1730640436245,70.09996066,163.2,163.19,15.3195]
[1730640437133,70.09996066,163.2,163.14,0.12549]
[1730640437948,70.09996066,163.2,163.13,30.6504]
[1730640438846,70.09996066,163.2,163.15,21.4526]
[1730640441641,0.09996066,163.18,163.15,21.4526]
[1730640441845,0.09996066,163.17,163.15,21.4526]
[1730640443350,0.09996066,163.12,163.1,52.1152]
[1730640444050,0.09996066,163.14,163.1,52.1152]
[1730640444353,0.09996066,163.14,163.11,0.12549]
[1730640445251,85.7434,163.16,163.1,52.1152]
[1730640445252,0.09996066,163.11,163.1,30.656]
[1730640445641,0.09996066,163.11,163.05,21.4657]
[1730640445642,0.09996066,163.1,163.06,20.0]
[1730640446153,0.09996066,163.11,163.07,0.12549]
[1730640446632,0.09996066,163.11,163.06,20.0]
[1730640446955,0.09996066,163.11,163.07,21.4631]
[1730640447162,0.09996066,163.09,163.07,21.4631]
[1730640447460,0.09996066,163.11,163.07,21.4631]
[1730640448141,0.09996066,163.1,163.07,21.4631]
[1730640448336,0.09996066,163.11,163.07,45.9924]
[1730640448528,0.09996066,163.13,163.08,20.12549]
[1730640448949,0.09996066,163.11,163.08,0.12549]
[1730640450127,0.09996066,163.12,163.09,21.4604]
[1730640450331,0.09996066,163.11,163.09,21.4604]
[1730640450756,0.09996066,163.1,163.09,21.4604]
[1730640452333,0.09996066,163.09,163.07,30.6616]
[1730640452543,0.09996066,163.08,163.07,30.6616]
[1730640454154,0.09996066,163.09,163.07,30.6616]
[1730640454357,0.09996066,163.09,163.05,30.6654]
[1730640454358,0.09996066,163.08,163.05,30.6654]
[1730640454552,0.09996066,163.06,163.05,50.6654]
[1730640454861,0.09996066,163.06,163.05,30.6654]
[1730640455654,0.09996066,163.07,163.05,30.6654]
[1730640456256,0.09996066,163.06,163.05,30.6654]
[1730640456441,0.09996066,163.07,163.05,30.6654]
[1730640456847,0.09996066,163.06,163.05,30.6654]
[1730640458446,0.09996066,163.03,163.01,20.0]
[1730640458836,0.09996066,163.05,163.01,20.0]
[1730640459239,0.09996066,163.04,163.02,0.12549]
[1730640459435,0.09996066,163.03,163.01,20.0]
[1730640459658,0.09996066,163.03,163.0,52.1471]
[1730640460156,0.09996066,163.01,163.0,52.1471]
[1730640460332,0.09996066,163.01,163.0,46.0122]
[1730640460864,0.09996066,163.04,163.01,0.12549]
[1730640461240,0.09996066,163.05,163.01,0.12549]
[1730640461539,0.09996066,163.04,163.01,20.12549]
[1730640461753,0.09996066,163.05,163.01,20.12549]
[1730640461940,0.09996066,163.03,163.01,20.12549]
[1730640462651,0.09996066,163.03,163.02,6.1342]
[1730640463337,0.09996066,163.04,163.02,6.1342]
[1730640463543,0.09996066,163.04,163.02,21.4697]
[1730640463964,0.09996066,163.03,163.02,21.4697]
[1730640466559,0.09996066,163.03,163.0,30.6748]
[1730640466954,0.09996066,163.01,163.0,30.6748]
[1730640468752,0.09996066,163.03,163.0,30.80029]
[1730640468950,70.0,163.06,163.01,20.0]
[1730640468951,0.09996066,163.04,163.01,20.0]
[1730640469662,0.09996066,163.04,163.02,0.12549]
[1730640469867,0.09996066,163.05,163.02,0.12549]
[1730640470863,0.09996066,163.04,163.02,0.12549]
[1730640471070,0.09996066,163.04,163.03,6.1338]
[1730640471469,0.09996066,163.07,163.04,0.12549]
[1730640471671,70.0,163.1,163.04,20.12549]
[1730640471672,0.09996066,163.08,163.04,20.12549]
[1730640472466,0.09996066,163.1,163.04,20.12549]
[1730640472671,0.09996066,163.12,163.06,20.12549]
[1730640472970,0.09996066,163.12,163.08,20.12549]
[1730640473347,0.09996066,163.1,163.08,20.12549]
[1730640474571,0.09996066,163.12,163.08,20.12549]
[1730640475160,0.09996066,163.05,163.04,21.467]
[1730640476074,0.09996066,163.06,163.04,21.467]
[1730640476661,0.09996066,163.05,163.04,21.467]
[1730640477061,0.09996066,163.05,163.03,30.6692]
[1730640478987,0.09996066,163.04,163.03,56.803]
[1730640479560,0.09996066,163.05,163.03,72.1376]
[1730640479970,0.09996066,163.07,163.04,20.12549]
[1730640480360,0.09996066,163.06,163.04,20.12549]
[1730640481064,0.09996066,163.06,163.05,26.133]
[1730640481889,0.09996066,163.07,163.05,41.4657]
[1730640482085,15.2581,163.14,163.06,20.0]
[1730640482086,0.09996066,163.09,163.06,20.0]
[1730640482681,0.09996066,163.1,163.07,0.12549]
[1730640483485,0.09996066,163.1,163.09,20.0]
[1730640485055,0.09996066,163.1,163.09,26.1315]
[1730640485694,0.09996066,163.12,163.09,41.4604]
[1730640486754,0.09996066,163.12,163.09,15.3289]
[1730640487184,0.09996066,163.12,163.1,20.12549]
[1730640488286,0.09996066,163.12,163.11,6.1308]
[1730640488483,0.09996066,163.13,163.11,6.1308]
[1730640488657,0.09996066,163.13,163.11,21.4578]
[1730640489686,0.09996066,163.14,163.11,21.4578]
[1730640489866,0.09996066,163.14,163.13,6.13]
[1730640491070,0.09996066,163.14,163.12,20.0]
[1730640491385,0.09996066,163.13,163.12,20.0]
[1730640492194,0.09996066,163.13,163.12,26.1304]
[1730640496294,0.09996066,163.13,163.11,30.6541]
[1730640497287,0.09996066,163.13,163.08,30.6597]
[1730640497288,0.09996066,163.09,163.08,30.6597]
[1730640499487,0.09996066,163.09,163.08,50.6597]
[1730640499880,0.09996066,163.1,163.08,50.6597]
[1730640500286,0.09996066,163.11,163.08,50.6597]
[1730640500486,0.09996066,163.12,163.09,20.0]
[1730640500791,0.09996066,163.1,163.09,20.0]
[1730640501384,0.09996066,163.11,163.09,41.4604]
[1730640501903,0.09996066,163.1,163.09,41.4604]
[1730640503264,0.09996066,163.11,163.09,41.4604]
[1730640504297,0.09996066,163.1,163.08,30.6597]
[1730640504517,0.09996066,163.1,163.09,20.0]
[1730640505499,0.09996066,163.1,163.09,26.1315]
[1730640505997,0.09996066,163.1,163.09,6.1315]
[1730640507601,70.0,163.09,163.05,30.6654]
[1730640507778,0.09996066,163.06,163.05,30.6654]
[1730640512999,0.09996066,163.02,163.01,20.0]
[1730640513583,0.09996066,163.02,163.0,52.1471]
[1730640514185,0.09996066,163.02,163.0,46.0122]
[1730640518201,0.09996066,163.02,163.01,26.1345]
[1730640518397,0.09996066,163.04,163.01,26.25999]
[1730640518598,0.09996066,163.05,163.01,41.59639]
[1730640518798,0.09996066,163.05,163.01,72.26929]
[1730640519011,0.09996066,163.06,163.02,0.12549]
[1730640519312,0.09996066,163.04,163.02,0.12549]
[1730640520111,0.09996066,163.05,163.03,26.1338]
[1730640520411,0.09996066,163.05,163.03,41.4684]
[1730640520916,0.09996066,163.06,163.03,41.4684]
[1730640521315,0.09996066,163.05,163.03,41.4684]
[1730640523509,0.09996066,163.06,163.03,41.4684]
[1730640524414,0.09996066,163.04,163.03,21.4684]
[1730640524720,70.09996066,163.04,163.03,21.4684]
[1730640525404,70.09996066,163.04,163.03,15.3346]
[1730640525597,70.09996066,163.04,163.03,21.4684]
[1730640525793,70.09996066,163.04,163.03,15.3346]
[1730640526623,0.09996066,162.98,162.95,21.4789]
[1730640526797,0.09996066,162.97,162.95,21.4789]
[1730640527811,0.09996066,162.97,162.95,52.1631]
[1730640528713,0.09996066,162.97,162.95,46.0263]
[1730640530011,0.09996066,162.96,162.95,46.0263]
[1730640530609,70.09996066,162.96,162.95,15.3421]
[1730640534529,0.09996066,162.96,162.95,15.3421]
[1730640536119,0.09996066,162.97,162.95,15.3421]
[1730640536423,0.09996066,162.96,162.95,15.3421]
[1730640536897,0.09996066,162.99,162.96,0.12549]
[1730640537422,0.09996066,162.98,162.96,0.12549]
[1730640538701,0.09996066,162.98,162.97,6.136]
[1730640539429,70.0,163.08,162.98,0.12549]
[1730640539607,70.0,163.1,163.0,44.153354]
[1730640541324,70.0,163.1,163.02,44.153354]
[1730640543632,15.8944,163.11,163.04,0.12549]
[1730640543832,70.0,163.1,163.04,0.12549]
[1730640545829,70.0,163.1,163.03,0.12549]
[1730640546129,70.0,163.1,163.05,15.3327]
[1730640547429,70.0,163.1,163.05,45.9981]
[1730640548328,70.0,163.15,163.06,20.37647]
[1730640548512,70.0,163.13,163.06,20.37647]
[1730640549513,70.0,163.13,163.06,0.12549]
[1730640550429,70.0,163.13,163.07,52.1247]
[1730640550630,70.0,163.15,163.08,20.12549]
[1730640552026,70.2998296,163.22,163.12,20.12549]
[1730640552333,0.2998296,163.22,163.18,0.12549]
[1730640552511,0.2998296,163.22,163.2,0.12549]
[1730640553230,0.2998296,163.22,163.19,0.25098]
[1730640553834,0.2998296,163.22,163.2,21.446]
[1730640555830,0.2998296,163.22,163.2,15.3186]
[1730640559131,0.2998296,163.22,163.17,30.6428]
[1730640560739,0.2998296,163.22,163.18,0.12549]
[1730640561015,0.2998296,163.22,163.17,30.6428]
[1730640562045,70.0,163.2,163.16,30.6445]
[1730640562244,70.2998296,163.22,163.16,30.6445]
[1730640565030,0.2998296,163.22,163.17,0.12549]
[1730640565339,0.2998296,163.22,163.19,0.12549]
[1730640565516,0.2998296,163.22,163.19,20.12549]
[1730640566621,0.2998296,163.22,163.2,21.446]
[1730640568814,0.2998296,163.22,163.2,15.3186]
[1730640570937,0.2998296,163.22,163.18,30.641]
[1730640571842,0.2998296,163.22,163.19,0.12549]
[1730640573039,0.2998296,163.22,163.2,21.446]
[1730640575840,0.2998296,163.22,163.21,0.12549]
[1730640577024,0.2998296,163.22,163.21,6.25249]
[1730640578250,0.2998296,163.22,163.2,15.3186]
[1730640580143,0.2998296,163.22,163.21,6.127]
[1730640580556,0.2998296,163.22,163.21,6.25249]
[1730640588760,0.2998296,163.22,163.21,6.127]
[1730640590565,0.2998296,163.22,163.19,0.12549]
[1730640590745,0.2998296,163.22,163.19,0.25098]
[1730640591437,0.2998296,163.22,163.19,0.12549]
[1730640592075,0.2998296,163.22,163.18,30.641]
[1730640592365,70.2998296,163.22,163.17,21.4499]
[1730640592553,70.2998296,163.22,163.16,30.6445]
[1730640599666,0.2998296,163.22,163.17,0.12549]
[1730640600767,0.2998296,163.22,163.17,44.153354]
[1730640601635,0.2998296,163.22,163.19,44.153354]
[1730640602040,0.2998296,163.22,163.21,44.153354]
[1730640603258,0.2998296,163.22,163.21,0.25098]
[1730640603649,0.2998296,163.22,163.21,6.37798]
[1730640604450,0.2998296,163.22,163.21,6.25249]
[1730640604653,0.2998296,163.22,163.21,6.127]
[1730640605675,0.2998296,163.22,163.19,20.12549]
[1730640606144,0.2998296,163.22,163.19,20.0]
[1730640606349,0.2998296,163.22,163.18,15.3205]
[1730640606558,70.2998296,163.22,163.18,15.3205]
[1730640606765,0.2998296,163.22,163.18,15.3205]
[1730640607344,0.2998296,163.22,163.19,0.12549]
[1730640607978,0.2998296,163.22,163.2,15.3186]
[1730640609271,70.2998296,163.22,163.18,30.641]
[1730640609453,70.2998296,163.22,163.13,6.13]
[1730640609454,70.0,163.2,163.13,21.4552]
[1730640610678,70.0,163.2,163.12,20.12549]
[1730640611475,70.2998296,163.22,163.13,0.12549]
[1730640611675,70.2998296,163.22,163.13,0.25098]
[1730640612463,70.2998296,163.22,163.15,0.12549]
[1730640612672,70.2998296,163.22,163.16,21.4512]
[1730640613968,70.2998296,163.22,163.16,15.3223]
[1730640614480,0.2998296,163.22,163.17,0.25098]
[1730640614658,0.2998296,163.22,163.18,0.12549]
[1730640615673,0.2998296,163.22,163.21,0.09993934]
[1730640615859,1e-08,163.22,163.21,44.25329334]
[1730640616054,1e-08,163.22,163.21,50.38029334]
[1730640618179,1e-08,163.22,163.21,49.903884]
[1730640618382,1e-08,163.22,163.21,26.127]
[1730640618571,1e-08,163.22,163.21,26.25249]
[1730640618757,1e-08,163.22,163.21,26.127]
[1730640619388,1e-08,163.22,163.21,26.25249]
[1730640619761,1e-08,163.22,163.21,50.280354]
[1730640621385,1e-08,163.22,163.21,50.38029334]
[1730640623689,1e-08,163.22,163.21,0.12549]
[1730640624283,1e-08,163.22,163.21,24.153354]
[1730640625067,1e-08,163.22,163.21,0.12549]
[1730640625283,1e-08,163.22,163.21,6.25249]
[1730640627490,1e-08,163.22,163.21,6.127]
[1730640628495,1e-08,163.22,163.2,15.3182]
[1730640631279,70.0,163.21,163.14,21.4539]
[1730640631876,70.0,163.21,163.15,0.12549]
[1730640632402,70.0,163.21,163.12,21.58199]
[1730640632693,70.0,163.21,163.14,0.12549]
[1730640633387,70.0,163.21,163.12,52.1087]
[1730640633594,85.5126,163.19,163.12,52.1087]
[1730640633889,85.5126,163.19,163.12,21.4565]
[1730640634088,70.0,163.17,163.12,21.4565]
[1730640634489,70.0,163.17,163.12,15.3261]
[1730640634897,70.0,163.11,163.05,21.4657]
[1730640635280,70.0,163.07,163.01,31.23185951]
[1730640635504,70.0,163.07,163.01,40.18247379]
[1730640635708,70.0,163.07,163.01,15.63556479]
[1730640635913,70.0,163.07,163.02,21.4693]
[1730640638381,0.1,163.09,163.01,0.29976479]
[1730640638382,70.0,163.04,163.01,0.29976479]
[1730640639383,70.0,163.04,163.01,6.43406479]
[1730640641286,70.0,163.04,163.01,0.29976479]
[1730640641505,70.0,163.02,163.01,0.29976479]
[1730640641709,109.865954,163.02,163.01,0.29976479]
[1730640642006,70.0,162.96,162.95,0.92003489]
[1730640644393,70.0,162.94,162.9,6.1384]
[1730640644806,70.0,162.94,162.91,6.1383]
[1730640645216,70.0,162.94,162.89,15.3469]
[1730640646197,70.0,162.94,162.9,6.1383]
[1730640646714,70.0,162.94,162.89,15.3469]
[1730640647016,0.1,163.0,162.93,6.4372648]
[1730640647017,70.0,162.96,162.93,6.4372648]
[1730640650919,70.0,162.98,162.93,21.7812648]
[1730640652137,70.0,162.96,162.93,0.2997648]
[1730640652414,70.0,162.94,162.93,0.2997648]
[1730640652997,70.0,162.96,162.93,0.2997648]
[1730640653507,70.0,162.94,162.93,0.2997648]
[1730640655512,70.0,162.96,162.93,0.2997648]
[1730640655827,70.0,162.94,162.93,0.2997648]
[1730640656702,70.0,162.96,162.93,0.2997648]
[1730640657622,70.0,162.94,162.93,0.2997648]
[1730640658101,86.3144,162.94,162.93,0.2997648]
[1730640658304,92.4516,162.94,162.93,0.2997648]
[1730640659098,92.4516,162.94,162.85,0.2997648]
[1730640659099,70.0,162.86,162.85,0.2997648]
[1730640660623,70.0,162.86,162.84,0.3217652]
[1730640661620,70.0,162.89,162.84,21.8150652]
[1730640662121,6.1376,162.93,162.84,21.8150652]
[1730640662122,70.0,162.86,162.84,0.3217652]
[1730640663496,85.827,162.86,162.84,0.3217652]
[1730640663701,6.1406,162.85,162.84,0.3217652]
[1730640664122,85.827,162.86,162.84,6.4626652]
[1730640664428,70.0,162.86,162.84,0.3217652]
[1730640665307,70.0,162.89,162.84,6.4626652]
[1730640665620,70.0,162.87,162.84,0.3217652]
[1730640667116,70.0,162.85,162.84,0.3217652]
[1730640669428,70.0,162.87,162.84,6.4626652]
[1730640669633,70.0,162.85,162.84,0.3217652]
[1730640670662,70.0,162.87,162.84,6.4625652]
[1730640671138,70.0,162.87,162.84,21.8149652]
[1730640671539,70.0,162.87,162.84,0.3217652]
[1730640672042,70.0,162.9,162.84,0.3217652]
[1730640672246,70.0,162.93,162.86,23.902374]
[1730640672621,70.0,162.91,162.87,21.4894]
[1730640672824,70.0,162.87,162.84,15.6739652]
[1730640673231,70.0,162.87,162.84,0.3217652]
[1730640674640,70.0,162.85,162.84,0.3217652]
[1730640675548,76.1406,162.85,162.84,0.3217652]
[1730640675931,70.0,162.85,162.84,0.3217652]
[1730640686535,70.0,162.87,162.84,6.4626652]
[1730640687163,70.0,162.87,162.84,0.3217652]
[1730640689340,70.0,162.89,162.84,0.3217652]
[1730640689551,70.0,162.89,162.84,21.8147652]
[1730640690738,70.0,162.91,162.84,21.8147652]
[1730640691867,70.0,162.93,162.84,27.9347652]
[1730640692163,70.0,162.93,162.85,23.902374]
[1730640692334,70.0,162.89,162.84,21.8147652]
[1730640692537,70.0,162.87,162.84,15.6741652]
[1730640693547,70.0,162.87,162.84,21.8150652]
[1730640694256,70.0,162.87,162.84,15.6741652]
[1730640694658,70.0,162.89,162.84,21.8150652]
[1730640696167,18.41,162.95,162.84,21.8150652]
[1730640696168,70.0,162.91,162.84,52.5199652]
[1730640697361,70.0,162.94,162.85,39.321654]
[1730640697964,70.0,162.94,162.86,21.4908]
[1730640698374,70.0,162.94,162.86,52.192]
[1730640699242,70.0,162.97,162.89,0.25098]
[1730640699461,70.0,162.97,162.89,24.153354]
[1730640699738,70.0,162.97,162.89,23.902374]
[1730640699941,70.0,162.97,162.9,21.4855]
[1730640701555,70.0,162.97,162.91,23.902374]
[1730640701948,70.0,162.97,162.9,52.1791]
[1730640703668,70.0,162.97,162.9,46.0404]
[1730640706746,70.0,162.99,162.94,21.4802]
[1730640708764,70.0,162.99,162.94,15.343]
[1730640708950,70.0,162.97,162.94,15.343]
[1730640710163,70.0,162.97,162.91,0.12549]
[1730640710562,85.3704,163.08,162.97,0.22542934]
[1730640710750,71.0633378,163.1,163.01,0.25098]
[1730640710945,15.3704,163.12,163.01,0.25098]
[1730640710946,70.0,163.08,163.01,0.12549]
[1730640711145,70.0,163.06,163.0,6.0039]
[1730640711360,70.0,163.06,162.99,15.4402]
[1730640711576,70.0,163.03,162.96,26.0039]
[1730640712073,70.0,163.03,162.95,15.4402]
[1730640712248,70.0,163.03,162.96,21.4775]
[1730640712871,70.0,163.01,162.96,21.4775]
[1730640713374,70.0,163.03,162.96,21.4775]
[1730640714568,70.0,163.02,162.98,21.475]
[1730640715576,70.0,163.02,162.98,15.3393]
[1730640716268,70.0,163.06,162.99,0.12549]
[1730640716470,70.1,163.06,162.99,0.12549]
[1730640718472,70.0,163.06,162.99,0.12549]
[1730640719058,70.0,163.06,162.97,21.4762]
[1730640719373,70.0,163.06,162.98,23.776884]
[1730640719552,70.1,163.06,162.99,0.12549]
[1730640720466,70.1,163.06,163.0,21.4723]
[1730640720665,70.0,163.03,163.0,15.3374]
[1730640721364,70.0,162.99,162.96,21.4766]
[1730640721569,70.0,162.99,162.91,15.8506]
[1730640721878,70.0,163.01,162.94,0.12549]
[1730640722169,21.5646,163.06,162.94,0.12549]
[1730640722170,70.0,163.03,162.94,0.12549]
[1730640722545,70.0,163.01,162.95,15.3421]
[1730640722951,70.0,162.97,162.95,15.3421]
[1730640723555,70.0,162.97,162.93,6.1376]
[1730640723878,70.0,162.94,162.92,15.3446]
[1730640724550,70.0,162.92,162.89,15.5145472]
[1730640724749,70.0,162.92,162.89,0.1669472]
[1730640724968,70.0,162.94,162.89,0.1669472]
[1730640725454,70.0,162.92,162.89,0.1669472]
[1730640725974,70.0,162.9,162.89,0.1669472]
[1730640726771,76.1387,162.9,162.89,0.1669472]
[1730640727152,15.2201,162.92,162.89,0.1669472]
[1730640727153,85.2201,162.92,162.89,0.1669472]
[1730640727352,85.2201,162.92,162.89,6.3058472]
[1730640728771,70.0,162.9,162.89,0.1669472]
[1730640730775,76.1387,162.9,162.89,0.1669472]
[1730640731275,70.0,162.9,162.89,0.1669472]
[1730640732163,70.0,162.92,162.89,21.6535472]
[1730640732556,70.0,162.92,162.89,0.1669472]
[1730640732557,70.0,162.9,162.89,0.1669472]
[1730640733480,70.0,162.92,162.89,0.1669472]
[1730640735365,70.0,162.9,162.89,0.1669472]
[1730640736760,76.1387,162.9,162.89,0.1669472]
[1730640736957,76.36419,162.9,162.89,0.1669472]
[1730640737157,91.68779,162.9,162.89,0.1669472]
[1730640737566,115.715654,162.9,162.89,0.1669472]
[1730640737965,160.727954,162.9,162.89,0.1669472]
[1730640738257,160.727954,162.9,162.81,0.3007928]
[1730640738258,70.0,162.82,162.81,0.3007928]
[1730640739775,70.0,162.85,162.81,0.3007928]
[1730640739968,70.0,162.85,162.81,21.7981928]
[1730640740398,70.0,162.83,162.81,15.6560928]
[1730640740890,70.0,162.85,162.81,15.6560928]
[1730640741056,70.0,162.85,162.81,21.7981928]
[1730640741259,70.0,162.83,162.81,21.7981928]
[1730640742682,70.0,162.83,162.81,15.6560928]
[1730640743298,70.0,162.83,162.81,0.3007928]
[1730640743600,76.1415,162.83,162.81,0.3007928]
[1730640743786,70.0,162.83,162.81,0.3007928]
[1730640744214,76.1416,162.83,162.81,0.3007928]
[1730640744383,0.45098,162.82,162.81,0.3007928]
[1730640744982,0.1,162.82,162.81,0.3007928]
[1730640745885,24.353354,162.82,162.81,0.3007928]
[1730640746088,68.905054,162.82,162.81,0.3007928]
[1730640746289,68.905054,162.82,162.72,0.3007928]
[1730640746290,70.0,162.73,162.72,0.3007928]
[1730640747213,70.47647,162.73,162.72,0.3007928]
[1730640747390,94.353354,162.73,162.72,0.3007928]
[1730640747591,70.57647,162.73,162.72,0.3007928]
[1730640747802,70.1,162.73,162.72,0.3007928]
[1730640748004,76.3451,162.73,162.72,0.3007928]
[1730640748204,76.72157,162.73,162.72,0.3007928]
[1730640749292,76.2451,162.73,162.72,0.3007928]
[1730640749489,76.3451,162.73,162.72,0.3007928]
[1730640750303,76.1451,162.73,162.72,0.3007928]
[1730640750487,76.2451,162.73,162.72,0.3007928]
[1730640750892,76.3451,162.73,162.72,0.3007928]
[1730640751088,76.47059,162.73,162.72,0.3007928]
[1730640751308,100.498454,162.73,162.72,0.3007928]
[1730640751505,70.0,162.66,162.64,0.3007928]
[1730640751695,76.6981,162.66,162.64,0.3007928]
[1730640752313,24.353354,162.65,162.64,0.3007928]
[1730640752495,0.45098,162.65,162.64,0.3007928]
[1730640752698,70.1,162.66,162.64,0.3007928]
[1730640753113,6.1481,162.65,162.64,0.3007928]
[1730640753319,0.2,162.65,162.64,0.3007928]
[1730640754393,0.1,162.65,162.64,0.3007928]
[1730640754714,24.353354,162.65,162.64,0.3007928]
[1730640755405,30.501454,162.65,162.64,0.3007928]
[1730640755911,6.2481,162.65,162.64,0.3007928]
[1730640756111,6.3481,162.65,162.64,0.3007928]
[1730640756417,30.375964,162.65,162.64,0.3007928]
[1730640756705,30.501454,162.65,162.64,0.3007928]
[1730640757115,76.2478,162.66,162.64,0.3007928]
[1730640759006,6.3481,162.65,162.64,0.3007928]
[1730640760113,6.47359,162.65,162.64,0.3007928]
[1730640760993,6.2481,162.65,162.64,0.3007928]
[1730640761207,6.3481,162.65,162.64,0.3007928]
[1730640761820,6.2481,162.65,162.64,0.3007928]
[1730640762020,6.3481,162.65,162.64,0.3007928]
[1730640762704,76.1478,162.66,162.64,0.3007928]
[1730640762903,70.0,162.66,162.64,0.3007928]
[1730640763495,70.0,162.66,162.64,6.4492928]
[1730640763899,70.0,162.66,162.64,21.8205928]
[1730640764303,70.0,162.66,162.64,15.6720928]
[1730640765426,70.0,162.68,162.64,21.8205928]
[1730640766320,70.0,162.66,162.64,21.8205928]
[1730640766517,70.0,162.66,162.64,15.6720928]
[1730640767401,70.0,162.66,162.64,21.8205928]
[1730640768197,76.1478,162.66,162.64,0.3007928]
[1730640769924,70.0,162.57,162.54,0.57906608]
[1730640770129,70.0,162.57,162.48,0.3007928]
[1730640770130,70.45098,162.57,162.48,0.3007928]
[1730640770417,70.45098,162.57,162.49,6.1542]
[1730640770599,70.35098,162.57,162.49,6.1542]
[1730640770801,70.35098,162.57,162.5,6.1536]
[1730640771417,70.0,162.57,162.5,6.1536]
[1730640771723,70.0,162.52,162.5,0.1431035]
[1730640772611,70.0,162.52,162.5,6.2968035]
[1730640772804,70.0,162.52,162.5,0.1431035]
[1730640773720,70.0,162.54,162.5,21.6813035]
[1730640774407,70.0,162.56,162.51,23.776884]
[1730640774608,70.0,162.58,162.53,6.5475]
[1730640774811,70.0,162.62,162.55,0.12549]
[1730640775021,70.0,162.6,162.54,23.776884]
[1730640775517,70.0,162.62,162.55,0.12549]
[1730640775716,70.0,162.62,162.55,0.37647]
[1730640776027,70.0,162.62,162.56,21.5304]
[1730640776210,70.0,162.62,162.57,23.776884]
[1730640777223,70.0,162.64,162.58,21.5278]
[1730640777815,70.0,162.66,162.59,23.776884]
[1730640778214,70.0,162.64,162.59,23.776884]
[1730640779409,70.0,162.64,162.6,21.5251]
[1730640779612,70.0,162.66,162.6,21.5251]
[1730640779805,70.0,162.68,162.61,23.902374]
[1730640780113,70.0,162.68,162.63,23.776884]
[1730640780321,70.0,162.64,162.6,21.5251]